bitfinex/quotes_BTCUSD_20250110
["timestamp","ask_amount","ask_price","bid_price","bid_amount"]
[1736486335058,0.213019,93889.0,93885.0,0.06626402]
[1736486335479,0.213019,93889.0,93885.0,0.06526402]
[1736486335859,0.213008,93893.0,93885.0,0.06526402]
[1736486336482,0.213008,93893.0,93886.0,0.0757]
[1736486338622,0.01061026,93895.0,93886.0,0.0757]
[1736486338938,0.21301,93892.0,93886.0,0.0757]
[1736486339784,0.213015,93890.0,93886.0,0.0757]
[1736486340381,0.213015,93890.0,93886.0,0.0767]
[1736486340819,0.213015,93890.0,93886.0,0.0757]
[1736486341182,0.213015,93890.0,93886.0,0.0777]
[1736486341389,0.213019,93888.0,93886.0,0.0777]
[1736486341808,0.213019,93888.0,93886.0,0.0757]
[1736486342367,0.213019,93888.0,93886.0,0.0777]
[1736486343138,0.213019,93888.0,93887.0,0.02236]
[1736486343393,0.15,93891.0,93886.0,0.0777]
[1736486343576,0.15,93891.0,93886.0,0.0757]
[1736486344041,0.15,93891.0,93886.0,0.0797]
[1736486344251,0.15,93891.0,93886.0,0.0767]
[1736486344437,0.15,93891.0,93886.0,0.0757]
[1736486344641,0.15,93891.0,93886.0,0.0767]
[1736486344888,0.15,93891.0,93886.0,0.0757]
[1736486345260,0.15,93891.0,93887.0,0.02216]
[1736486345489,0.15,93891.0,93886.0,0.0757]
[1736486347113,0.15,93891.0,93886.0,0.0777]
[1736486347314,0.15,93891.0,93886.0,0.0757]
[1736486347679,0.15,93891.0,93886.0,0.0777]
[1736486347879,0.15,93891.0,93886.0,0.0757]
[1736486348282,0.15,93891.0,93886.0,0.0777]
[1736486348483,0.15,93891.0,93886.0,0.0757]
[1736486350089,0.15,93889.0,93886.0,0.0777]
[1736486350332,0.15,93889.0,93886.0,0.0757]
[1736486350542,0.15,93889.0,93886.0,0.0777]
[1736486350991,0.14983888,93889.0,93886.0,0.09806]
[1736486351200,0.213006,93894.0,93886.0,0.10106]
[1736486351402,0.426012,93894.0,93886.0,0.09906]
[1736486351962,0.01061026,93895.0,93886.0,0.10106]
[1736486351964,0.213016,93890.0,93886.0,0.10106]
[1736486352167,0.213016,93890.0,93887.0,0.024696]
[1736486352376,0.213016,93890.0,93886.0,0.0797]
[1736486352806,0.01061026,93895.0,93890.0,0.1]
[1736486352999,0.01061026,93895.0,93893.0,0.1]
[1736486353202,0.01061026,93895.0,93894.0,0.0783]
[1736486353616,0.212992,93900.0,93894.0,0.0783]
[1736486353822,0.212983,93905.0,93895.0,0.1]
[1736486354121,0.212967,93911.0,93902.0,0.0465]
[1736486354325,0.22363596,93911.0,93902.0,0.0465]
[1736486354574,0.212979,93906.0,93902.0,0.0465]
[1736486355414,0.21302777,93906.0,93902.0,0.0465]
[1736486357202,0.21402777,93906.0,93902.0,0.0465]
[1736486357626,0.00104877,93906.0,93902.0,0.0465]
[1736486358168,0.00204877,93906.0,93902.0,0.0465]
[1736486359666,0.15204877,93906.0,93902.0,0.0465]
[1736486359911,0.15,93904.0,93902.0,0.0465]
[1736486360750,0.362985,93903.0,93902.0,0.0465]
[1736486363717,0.15,93903.0,93902.0,0.0465]
[1736486366395,0.18066107,93903.0,93902.0,0.0465]
[1736486366649,0.363003,93895.0,93894.0,0.3226]
[1736486370145,0.364003,93895.0,93894.0,0.3226]
[1736486371105,0.213026,93885.0,93884.0,0.0486]
[1736486372477,0.213026,93885.0,93884.0,0.0506]
[1736486377042,0.213026,93885.0,93884.0,0.1506]
[1736486377917,0.213008,93893.0,93885.0,0.1]
[1736486378090,0.15,93892.0,93885.0,0.1]
[1736486378303,0.15,93892.0,93884.0,0.0506]
[1736486378304,0.15,93892.0,93884.0,0.1506]
[1736486378509,0.15,93892.0,93886.0,0.0773]
[1736486379085,0.14423402,93890.0,93886.0,0.0773]
[1736486380249,0.001,93892.0,93886.0,0.0773]
[1736486380552,0.01074072,93893.0,93886.0,0.0803]
[1736486380924,0.213006,93895.0,93886.0,0.0803]
[1736486381144,0.15,93890.0,93886.0,0.10319]
[1736486381519,0.15,93890.0,93886.0,0.10019]
[1736486381867,0.15,93890.0,93886.0,0.0813]
[1736486382225,0.15,93890.0,93886.0,0.0773]
[1736486382449,0.15,93890.0,93886.0,0.0813]
[1736486382646,0.15,93890.0,93886.0,0.0823]
[1736486382864,0.213007,93894.0,93886.0,0.0823]
[1736486383062,0.0792,93915.0,93886.0,0.0823]
[1736486383063,0.213014,93891.0,93886.0,0.0823]
[1736486383271,0.426028,93891.0,93886.0,0.0823]
[1736486383650,0.426028,93891.0,93886.0,0.0813]
[1736486384573,0.426028,93891.0,93886.0,0.0773]
[1736486384948,0.426028,93891.0,93886.0,0.0793]
[1736486385297,0.426028,93891.0,93886.0,0.0773]
[1736486385466,0.426028,93891.0,93886.0,0.0813]
[1736486385977,0.426028,93891.0,93886.0,0.0823]
[1736486386790,0.43682343,93891.0,93886.0,0.0823]
[1736486386987,0.43682343,93891.0,93886.0,0.005]
[1736486387803,0.43682343,93891.0,93886.0,0.001]
[1736486388024,0.43682343,93891.0,93884.0,0.0486]
[1736486388228,0.213026,93885.0,93884.0,0.0486]
[1736486390975,0.213026,93885.0,93884.0,0.0506]
[1736486391811,0.213026,93885.0,93884.0,0.002]
[1736486392766,0.426053,93885.0,93879.0,0.0784]
[1736486393163,0.213026,93885.0,93879.0,0.0784]
[1736486393370,0.213031,93883.0,93879.0,0.0784]
[1736486394205,0.22380943,93891.0,93879.0,0.0784]
[1736486394206,0.01079543,93891.0,93879.0,0.0784]
[1736486394412,0.079,93901.0,93879.0,0.0784]
[1736486394749,0.426062,93883.0,93879.0,0.0814]
[1736486394911,0.426062,93883.0,93879.0,0.003]
[1736486395532,0.213046,93877.0,93875.0,0.0477]
[1736486396742,0.213046,93877.0,93875.0,0.04774891]
[1736486398163,0.213046,93877.0,93875.0,0.04974891]
[1736486398940,0.213046,93877.0,93875.0,0.04774891]
[1736486399151,0.213046,93877.0,93875.0,0.05374891]
[1736486399574,0.213046,93877.0,93875.0,0.04774891]
[1736486400336,0.22393727,93877.0,93875.0,0.04774891]
[1736486400532,0.15,93876.0,93875.0,0.04774891]
[1736486401419,0.15,93876.0,93875.0,4.891e-05]
[1736486401751,0.15,93876.0,93875.0,0.00104891]
[1736486401916,0.15,93876.0,93875.0,4.891e-05]
[1736486402111,0.15,93876.0,93875.0,0.00204891]
[1736486402449,0.15,93876.0,93875.0,4.891e-05]
[1736486402652,0.15,93876.0,93875.0,0.08054891]
[1736486403601,0.01089127,93877.0,93875.0,0.08054891]
[1736486403802,0.01089127,93877.0,93875.0,0.10337232]
[1736486403930,0.15,93879.0,93876.0,0.0488]
[1736486404346,0.15,93879.0,93877.0,0.0832]
[1736486404770,0.21302,93888.0,93877.0,0.0832]
[1736486405135,0.15,93887.0,93877.0,0.0832]
[1736486405520,0.2265255,93888.0,93883.0,0.0832]
[1736486405655,0.0135055,93888.0,93883.0,0.1832]
[1736486405865,0.15,93892.0,93883.0,0.1832]
[1736486406064,0.15,93892.0,93884.0,0.1276]
[1736486406270,0.16342397,93892.0,93887.0,0.0808]
[1736486406643,0.16342397,93892.0,93884.0,0.0468]
[1736486406644,0.15,93890.0,93884.0,0.0468]
[1736486406849,0.15,93888.0,93884.0,0.0468]
[1736486408348,0.15,93888.0,93884.0,0.0508]
[1736486408545,0.15,93886.0,93884.0,0.0508]
[1736486408818,0.15,93885.0,93884.0,0.0508]
[1736486409158,0.15,93885.0,93884.0,0.0518]
[1736486409743,0.15,93885.0,93884.0,0.0468]
[1736486409965,0.15,93885.0,93884.0,0.07056]
[1736486410169,0.15,93885.0,93884.0,0.0478]
[1736486411194,0.01317058,93885.0,93884.0,0.1289]
[1736486411398,0.15,93895.0,93884.0,0.2289]
[1736486411777,0.15,93893.0,93886.0,0.1]
[1736486412557,0.15,93891.0,93886.0,0.1]
[1736486412985,0.15,93891.0,93886.0,0.102]
[1736486414108,0.15,93891.0,93886.0,0.1]
[1736486414549,0.15,93891.0,93886.0,0.102]
[1736486414764,0.15,93891.0,93886.0,0.1]
[1736486414970,0.15,93891.0,93886.0,0.101]
[1736486415142,0.15,93891.0,93886.0,0.104]
[1736486415349,0.15,93889.0,93884.0,0.1289]
[1736486415567,0.15,93889.0,93886.0,0.003]
[1736486415768,0.15,93889.0,93886.0,0.004]
[1736486415973,0.15,93889.0,93886.0,0.101]
[1736486416284,0.15,93889.0,93886.0,0.1]
[1736486416689,0.15,93893.0,93886.0,0.1]
[1736486416828,0.15,93891.0,93886.0,0.1]
[1736486417258,0.213015,93890.0,93884.0,0.1299]
[1736486418077,0.213015,93890.0,93886.0,0.003]
[1736486418287,0.213015,93890.0,93886.0,0.004]
[1736486418605,0.213015,93890.0,93886.0,0.001]
[1736486418786,0.21301,93892.0,93884.0,0.1319]
[1736486419309,0.21301,93892.0,93884.0,0.1299]
[1736486419516,0.15,93891.0,93886.0,0.003]
[1736486419839,0.15,93889.0,93884.0,0.1289]
[1736486420043,0.15,93889.0,93884.0,0.1309]
[1736486420245,0.15,93889.0,93886.0,0.1]
[1736486420867,0.15,93892.0,93886.0,0.1]
[1736486421059,0.15,93892.0,93887.0,0.0789]
[1736486421894,0.01347262,93896.0,93887.0,0.0789]
[1736486422033,0.15,93897.0,93887.0,0.0789]
[1736486422231,0.15,93897.0,93888.0,0.213019]
[1736486422510,0.212958,93915.0,93896.0,0.1]
[1736486422724,0.212958,93915.0,93902.0,0.0789]
[1736486422948,0.212958,93915.0,93902.0,0.12292679]
[1736486423169,0.19154058,93921.0,93909.0,0.1]
[1736486423383,0.15,93921.0,93910.0,0.339169]
[1736486423815,0.212937,93925.0,93915.0,0.1]
[1736486424432,0.212937,93925.0,93916.0,0.0789]
[1736486424433,0.01297366,93925.0,93916.0,0.0789]
[1736486425383,0.01297366,93925.0,93916.0,0.1789]
[1736486425781,0.01597366,93925.0,93916.0,0.1789]
[1736486426121,0.01697366,93925.0,93916.0,0.1789]
[1736486426327,0.01697366,93925.0,93917.0,0.0439161]
[1736486426538,0.220416,93943.0,93917.0,0.0439161]
[1736486426695,0.212919,93932.0,93917.0,0.0439161]
[1736486427103,0.212919,93932.0,93918.0,0.212951]
[1736486427686,0.212919,93932.0,93917.0,0.0439161]
[1736486427879,0.212919,93932.0,93918.0,0.04357771]
[1736486428501,0.213919,93932.0,93918.0,0.04357771]
[1736486428706,0.001,93925.0,93918.0,0.04357771]
[1736486428927,0.001,93925.0,93918.0,0.25652871]
[1736486429150,0.15,93931.0,93919.0,0.1304]
[1736486429363,0.15,93931.0,93920.0,0.06998897]
[1736486429735,0.15,93933.0,93919.0,0.1304]
[1736486429951,0.212915,93934.0,93919.0,0.1304]
[1736486430075,0.15,93933.0,93919.0,0.1304]
[1736486430559,0.212919,93932.0,93919.0,0.1304]
[1736486431364,0.15,93933.0,93919.0,0.1304]
[1736486431601,0.15,93931.0,93920.0,0.0656311]
[1736486431804,0.01299535,93937.0,93925.0,0.1]
[1736486431995,0.01299535,93937.0,93927.0,0.0821]
[1736486432272,0.16299535,93937.0,93927.0,0.0821]
[1736486432516,0.001,93934.0,93927.0,0.0821]
[1736486433125,0.001,93934.0,93927.0,0.0831]
[1736486433327,0.01299535,93937.0,93927.0,0.0821]
[1736486433505,0.01299535,93937.0,93927.0,0.18448016]
[1736486433703,0.01299535,93937.0,93927.0,0.18748016]
[1736486433896,0.01299535,93937.0,93928.0,0.0751]
[1736486434333,0.01299535,93937.0,93929.0,0.1]
[1736486434569,0.01299535,93937.0,93930.0,0.0767]
[1736486434744,0.01299535,93937.0,93930.0,0.13552377]
[1736486435322,0.01299535,93937.0,93933.0,0.1]
[1736486436454,0.01299535,93937.0,93933.0,0.102]
[1736486436659,0.01299535,93937.0,93933.0,0.1]
[1736486438153,0.01299535,93937.0,93933.0,0.102]
[1736486438315,0.01299535,93937.0,93933.0,0.1]
[1736486438894,0.01299535,93937.0,93933.0,0.102]
[1736486439072,0.01299535,93937.0,93933.0,0.1]
[1736486439216,0.01299535,93937.0,93933.0,0.102]
[1736486439645,0.01299535,93937.0,93933.0,0.1]
[1736486440054,0.01299535,93937.0,93933.0,0.102]
[1736486440800,0.15,93935.0,93933.0,0.102]
[1736486441151,0.15,93935.0,93930.0,0.0767]
[1736486441359,0.15,93935.0,93933.0,0.1]
[1736486441559,0.15,93935.0,93933.0,0.102]
[1736486441761,0.01299535,93937.0,93933.0,0.1]
[1736486442059,0.01299535,93937.0,93933.0,0.102]
[1736486442616,0.01299535,93937.0,93933.0,0.1]
[1736486442794,0.01299535,93937.0,93933.0,0.103]
[1736486443153,0.01299535,93937.0,93933.0,0.101]
[1736486443416,0.01299535,93937.0,93933.0,0.1]
[1736486444170,0.01299535,93937.0,93936.0,0.1778]
[1736486444171,0.00021929,93937.0,93936.0,0.1778]
[1736486444337,0.00021929,93937.0,93936.0,0.39177441]
[1736486444538,0.00021929,93937.0,93936.0,0.39071]
[1736486445425,0.00021929,93937.0,93936.0,0.86320976]
[1736486445568,0.00021929,93937.0,93936.0,0.96750952]
[1736486445772,0.00021929,93937.0,93936.0,0.96950952]
[1736486445973,0.00021929,93937.0,93936.0,0.96750952]
[1736486446336,0.00021929,93937.0,93936.0,0.96950952]
[1736486447126,0.00021929,93937.0,93936.0,0.97050952]
[1736486447529,0.00021929,93937.0,93936.0,0.96850952]
[1736486447956,0.00021929,93937.0,93936.0,0.97150952]
[1736486448923,0.15,93953.0,93947.0,0.1]
[1736486449125,0.15048905,93953.0,93948.0,0.0803]
[1736486450101,0.00048905,93953.0,93948.0,0.0803]
[1736486450279,0.00248905,93953.0,93949.0,0.01803]
[1736486450679,0.00248905,93953.0,93950.0,0.0499]
[1736486451162,0.00448905,93953.0,93950.0,0.0499]
[1736486451363,0.15,93951.0,93950.0,0.0499]
[1736486452556,0.152,93951.0,93950.0,0.0499]
[1736486453719,0.154,93951.0,93950.0,0.0499]
[1736486455447,0.212893,93944.0,93941.0,0.1832]
[1736486455652,0.212893,93944.0,93941.0,0.0832]
[1736486456748,0.212893,93944.0,93925.0,0.212935]
[1736486456749,0.15,93939.0,93933.0,0.1]
[1736486458227,0.15,93937.0,93933.0,0.1]
[1736486458540,0.15,93937.0,93933.0,0.102]
[1736486459554,0.16259202,93939.0,93933.0,0.103]
[1736486459790,0.212906,93938.0,93933.0,0.103]
[1736486459938,0.15,93937.0,93933.0,0.003]
[1736486460144,0.15,93937.0,93933.0,0.001]
[1736486460555,0.15,93935.0,93933.0,0.001]
[1736486460732,0.15,93935.0,93933.0,0.004]
[1736486461585,0.15,93939.0,93933.0,0.003]
[1736486461947,0.15,93937.0,93931.0,0.0459]
[1736486463366,0.15,93939.0,93933.0,0.004]
[1736486463572,0.15,93935.0,93933.0,0.004]
[1736486463721,0.15,93935.0,93931.0,0.0469]
[1736486463920,0.15,93935.0,93931.0,0.0499]
[1736486464332,0.15,93935.0,93931.0,0.0469]
[1736486464508,0.15,93935.0,93933.0,0.002]
[1736486464936,0.15,93935.0,93931.0,0.0459]
[1736486465091,0.15,93935.0,93931.0,0.0499]
[1736486465748,0.15,93935.0,93933.0,0.001]
[1736486466201,0.15,93935.0,93931.0,0.0499]
[1736486466716,0.15,93935.0,93931.0,0.0469]
[1736486466932,0.15,93935.0,93933.0,0.004]
[1736486467123,0.15,93935.0,93931.0,0.0469]
[1736486467744,0.15,93935.0,93931.0,0.0459]
[1736486467947,0.15,93935.0,93931.0,0.0499]
[1736486468158,0.15,93935.0,93933.0,0.001]
[1736486468555,0.15,93935.0,93931.0,0.0499]
[1736486469107,0.15,93933.0,93931.0,0.0509]
[1736486469526,0.15,93933.0,93931.0,0.0469]
[1736486470483,0.01994727,93932.0,93931.0,0.0479]
[1736486470689,0.38286627,93932.0,93931.0,0.0479]
[1736486470937,0.38286627,93932.0,93931.0,0.0469]
[1736486471782,0.16994727,93932.0,93931.0,0.14941]
[1736486471988,0.16994727,93932.0,93931.0,0.0469]
[1736486472201,0.01994727,93932.0,93931.0,0.2293]
[1736486472371,0.01994727,93932.0,93931.0,0.33359976]
[1736486472579,0.21336305,93953.0,93931.0,0.33259976]
[1736486472782,0.00048905,93953.0,93949.0,0.0824]
[1736486473399,0.15,93951.0,93949.0,0.0824]
[1736486474328,0.15,93951.0,93950.0,0.0491]
[1736486475361,0.01315819,93953.0,93950.0,0.0491]
[1736486475501,0.002,93951.0,93950.0,0.0491]
[1736486476206,0.01315819,93953.0,93950.0,0.0491]
[1736486476949,0.01315819,93953.0,93950.0,0.0501]
[1736486477262,0.01315819,93953.0,93950.0,0.0491]
[1736486477673,0.002,93951.0,93950.0,0.0491]
[1736486478115,0.01315819,93953.0,93950.0,0.0491]
[1736486480413,0.01315819,93953.0,93951.0,0.12315]
[1736486480596,0.01315819,93953.0,93951.0,0.1]
[1736486480803,0.00048905,93953.0,93952.0,0.1]
[1736486483288,0.0204169,93953.0,93952.0,0.1]
[1736486483492,0.0204169,93953.0,93952.0,0.101]
[1736486492413,0.0001706,93960.0,93952.0,0.101]
[1736486492570,5.205e-05,93959.0,93953.0,0.1]
[1736486492771,0.21291205,93959.0,93953.0,0.1]
[1736486494352,0.21391205,93959.0,93953.0,0.1]
[1736486497959,0.21491205,93959.0,93953.0,0.1]
[1736486500090,0.212863,93957.0,93953.0,0.1]
[1736486501343,0.213863,93957.0,93953.0,0.1]
[1736486502670,0.214863,93957.0,93953.0,0.1]
[1736486502904,0.002,93957.0,93950.0,0.0491]
[1736486503117,0.36289,93945.0,93944.0,0.3226]
[1736486504259,0.36289,93945.0,93944.0,0.3266]
[1736486504807,0.36289,93945.0,93944.0,0.004]
[1736486505483,0.15,93932.0,93930.0,0.1498]
[1736486506511,0.15,93942.0,93931.0,0.02288]
[1736486506711,0.15,93942.0,93931.0,0.02394448]
[1736486507129,0.15,93942.0,93938.0,0.1]
[1736486507551,0.22826954,93946.0,93938.0,0.1]
[1736486507552,0.15,93945.0,93938.0,0.1]
[1736486507764,0.15,93943.0,93938.0,0.1]
[1736486508420,0.15,93943.0,93940.0,0.076]
[1736486508627,0.15,93943.0,93940.0,0.3986]
[1736486508871,0.01538154,93946.0,93940.0,0.3986]
[1736486509211,0.15,93949.0,93940.0,0.3986]
[1736486509551,0.01567285,93949.0,93941.0,0.0463]
[1736486509995,0.15,93949.0,93941.0,0.0463]
[1736486510420,0.212883,93948.0,93941.0,0.0463]
[1736486510988,0.212897,93943.0,93940.0,0.3226]
[1736486511195,0.01994558,93947.0,93940.0,0.3226]
[1736486511407,0.212888,93946.0,93941.0,0.1]
[1736486511608,0.212888,93946.0,93940.0,0.3226]
[1736486511816,0.425776,93946.0,93940.0,0.3226]
[1736486512213,0.01994558,93945.0,93940.0,0.3226]
[1736486512595,0.01994558,93945.0,93944.0,0.1]
[1736486513148,0.01994558,93945.0,93940.0,0.3246]
[1736486513364,0.01994558,93945.0,93940.0,0.3226]
[1736486513569,0.01994558,93945.0,93940.0,0.3246]
[1736486513980,0.01994558,93945.0,93940.0,0.3226]
[1736486514184,0.01994558,93945.0,93944.0,0.002]
[1736486514387,0.425776,93946.0,93944.0,0.102]
[1736486514594,0.425776,93946.0,93944.0,0.002]
[1736486515015,0.425776,93946.0,93945.0,0.1]
[1736486515221,0.01994778,93945.0,93944.0,0.002]
[1736486515980,0.01994778,93945.0,93944.0,0.102]
[1736486516188,0.23283778,93945.0,93944.0,0.1]
[1736486517103,0.23283778,93945.0,93944.0,0.102]
[1736486517308,0.01994778,93945.0,93944.0,0.103]
[1736486517546,0.01994778,93945.0,93944.0,0.1781]
[1736486519420,0.01994778,93945.0,93944.0,0.2231]
[1736486520177,0.01517722,93952.0,93944.0,0.2231]
[1736486520562,0.16544647,93953.0,93948.0,0.1]
[1736486520769,0.15,93951.0,93948.0,0.1]
[1736486520972,0.169949,93951.0,93948.0,0.1]
[1736486521958,0.019949,93950.0,93948.0,0.1]
[1736486523130,0.15,93951.0,93948.0,0.1]
[1736486523131,0.019949,93949.0,93948.0,0.1]
[1736486523306,0.38283,93949.0,93948.0,0.1]
[1736486523916,0.169949,93949.0,93948.0,0.1]
[1736486524317,0.15,93948.0,93947.0,0.1]
[1736486525665,0.019949,93948.0,93947.0,0.1]
[1736486526463,0.15,93951.0,93947.0,0.101]
[1736486527038,0.15,93951.0,93948.0,0.1]
[1736486527466,0.16534734,93954.0,93948.0,0.1]
[1736486527818,0.15,93954.0,93948.0,0.1]
[1736486528396,0.01930248,93955.0,93948.0,0.1]
[1736486528597,0.212856,93961.0,93952.0,0.1]
[1736486528836,0.0001706,93962.0,93949.0,0.10081]
[1736486528837,0.0001706,93962.0,93953.0,0.1]
[1736486529244,0.0001706,93962.0,93956.0,0.0478]
[1736486529448,0.0001706,93962.0,93957.0,0.0787]
[1736486529662,0.01984817,93959.0,93957.0,0.0787]
[1736486529855,5.205e-05,93959.0,93957.0,0.10135]
[1736486530057,5.205e-05,93959.0,93958.0,0.1]
[1736486530260,0.00105205,93959.0,93958.0,0.1]
[1736486530478,0.00105205,93959.0,93958.0,0.10106416]
[1736486530687,0.00305205,93959.0,93958.0,0.10106416]
[1736486530885,5.205e-05,93959.0,93958.0,0.14630812]
[1736486531092,0.00105205,93959.0,93958.0,0.14737231]
[1736486531305,0.00305205,93959.0,93958.0,0.32717207]
[1736486531541,0.00305205,93959.0,93958.0,0.32610788]
[1736486532315,0.00305205,93959.0,93958.0,0.64870788]
[1736486532519,0.00105205,93959.0,93958.0,0.69530788]
[1736486532879,0.00305205,93959.0,93958.0,0.69530788]
[1736486533085,5.205e-05,93959.0,93958.0,0.69530788]
[1736486533426,0.00105205,93959.0,93958.0,0.69930788]
[1736486533639,0.00105205,93959.0,93958.0,0.65299976]
[1736486533842,5.205e-05,93959.0,93958.0,0.65299976]
[1736486534279,5.205e-05,93959.0,93958.0,0.65399976]
[1736486535799,5.205e-05,93959.0,93958.0,0.64899976]
[1736486535936,5.205e-05,93959.0,93958.0,0.66099976]
[1736486536148,5.205e-05,93959.0,93958.0,0.65199976]
[1736486536591,5.205e-05,93959.0,93958.0,0.65799976]
[1736486537279,5.205e-05,93959.0,93958.0,0.65299976]
[1736486538067,5.205e-05,93959.0,93958.0,0.75729952]
[1736486538283,5.205e-05,93959.0,93958.0,0.4487]
[1736486538693,5.205e-05,93959.0,93958.0,0.4577]
[1736486538900,5.205e-05,93959.0,93958.0,0.4447]
[1736486539347,5.205e-05,93959.0,93958.0,0.4577]
[1736486539666,5.205e-05,93959.0,93958.0,0.4487]
[1736486539862,5.205e-05,93959.0,93958.0,0.4497]
[1736486540296,5.205e-05,93959.0,93958.0,0.4467]
[1736486540485,5.205e-05,93959.0,93958.0,0.4507]
[1736486540635,5.205e-05,93959.0,93958.0,0.4487]
[1736486541724,5.205e-05,93959.0,93958.0,0.4447]
[1736486541908,5.205e-05,93959.0,93958.0,0.5447]
[1736486542085,5.205e-05,93959.0,93958.0,0.5517]
[1736486542686,5.205e-05,93959.0,93958.0,0.3742]
[1736486542887,5.205e-05,93959.0,93958.0,0.3712]
[1736486543357,5.205e-05,93959.0,93958.0,0.4712]
[1736486543481,0.0237324,93959.0,93958.0,0.3742]
[1736486543700,0.0237324,93959.0,93958.0,0.3236]
[1736486545062,0.0237324,93959.0,93958.0,0.3226]
[1736486545281,0.04365378,93959.0,93958.0,0.3266]
[1736486545481,0.04365378,93959.0,93958.0,0.3276]
[1736486546231,0.04365378,93959.0,93958.0,0.3266]
[1736486546585,0.04365378,93959.0,93958.0,0.3276]
[1736486546994,0.04365378,93959.0,93958.0,0.3236]
[1736486547602,0.04365378,93959.0,93958.0,0.001]
[1736486548209,0.04365378,93959.0,93958.0,0.005]
[1736486551932,0.04365378,93959.0,93958.0,0.104]
[1736486552191,0.04365378,93959.0,93958.0,0.1]
[1736486552419,0.04365378,93959.0,93958.0,0.104]
[1736486552630,0.04365378,93959.0,93958.0,0.101]
[1736486552822,0.04365378,93959.0,93958.0,0.1]
[1736486553049,0.04365378,93959.0,93958.0,0.103]
[1736486553243,0.04365378,93959.0,93958.0,0.101]
[1736486553622,0.04365378,93959.0,93958.0,0.1]
[1736486554035,0.04365378,93959.0,93949.0,0.3226]
[1736486554639,0.0237324,93959.0,93958.0,0.003]
[1736486554816,0.0237324,93959.0,93949.0,0.3226]
[1736486555017,0.0237324,93959.0,93958.0,0.001]
[1736486555825,0.0237324,93959.0,93958.0,0.003]
[1736486556025,0.04367779,93959.0,93958.0,0.003]
[1736486558074,0.04367779,93959.0,93958.0,0.004]
[1736486564305,0.04367779,93959.0,93958.0,0.003501]
[1736486566274,0.19367779,93959.0,93958.0,0.003501]
[1736486566447,0.19487137,93959.0,93958.0,0.003501]
[1736486566823,1.38863607,93959.0,93958.0,0.003501]
[1736486567043,0.362906,93938.0,93937.0,0.3226]
[1736486567451,0.15,93938.0,93937.0,0.3226]
[1736486568081,0.16994539,93938.0,93937.0,0.3226]
[1736486569120,0.16994539,93938.0,93937.0,0.3236]
[1736486569501,0.16994539,93938.0,93937.0,0.4256]
[1736486569720,0.16994539,93938.0,93937.0,0.3256]
[1736486571139,0.1939124,93938.0,93937.0,0.3256]
[1736486571543,0.1939124,93938.0,93937.0,0.003]
[1736486573561,0.1939124,93938.0,93937.0,0.103]
[1736486573761,0.1939124,93938.0,93937.0,0.235]
[1736486574794,0.16994539,93938.0,93937.0,0.235]
[1736486575263,0.15,93937.0,93900.0,8.52e-05]
[1736486575490,0.15,93937.0,93890.0,0.06]
[1736486575491,0.15,93912.0,93890.0,0.06]
[1736486575706,0.207339,93911.0,93890.0,0.06]
[1736486575968,0.213005,93895.0,93890.0,0.06]
[1736486576178,0.00043769,93914.0,93890.0,0.06]
[1736486576179,0.04327383,93913.0,93890.0,0.06]
[1736486576391,0.15,93898.0,93893.0,0.00610224]
[1736486576612,0.15,93898.0,93893.0,8.52e-05]
[1736486577255,0.15,93898.0,93893.0,0.00057425]
[1736486577460,0.15,93896.0,93893.0,0.00057425]
[1736486577666,0.213003,93895.0,93893.0,0.00057425]
[1736486578352,0.15,93896.0,93893.0,0.00057425]
[1736486578852,0.0199187,93894.0,93893.0,0.00057425]
[1736486579701,0.0219187,93895.0,93893.0,0.00057425]
[1736486579879,0.0209187,93895.0,93893.0,0.00057425]
[1736486580254,0.001,93894.0,93893.0,0.00057425]
[1736486581848,0.15,93896.0,93893.0,0.00057425]
[1736486582054,0.01986641,93894.0,93893.0,0.00057425]
[1736486584342,0.213003,93895.0,93893.0,0.00057425]
[1736486585522,0.213003,93895.0,93893.0,0.00157425]
[1736486585726,0.213003,93895.0,93893.0,0.00457425]
[1736486585917,0.213003,93895.0,93893.0,0.00357425]
[1736486586119,0.213003,93895.0,93893.0,0.00057425]
[1736486586351,0.213003,93895.0,93893.0,0.00457425]
[1736486591324,0.0198495,93894.0,93893.0,0.00457425]
[1736486592231,0.0198495,93894.0,93893.0,0.00057425]
[1736486592607,0.0198495,93894.0,93893.0,0.00357425]
[1736486593032,0.0198495,93894.0,93893.0,0.00457425]
[1736486596100,0.213003,93895.0,93893.0,0.00457425]
[1736486596303,0.01988143,93894.0,93893.0,0.00457425]
[1736486597246,0.01988143,93894.0,93893.0,0.08527425]
[1736486597469,0.01988143,93894.0,93893.0,0.12757425]
[1736486597677,0.01988143,93894.0,93893.0,0.12863913]
[1736486597938,0.01988143,93894.0,93893.0,0.13063913]
[1736486598102,0.01988143,93894.0,93893.0,0.12763913]
[1736486598310,0.01988143,93894.0,93893.0,0.12863913]
[1736486598511,0.01988143,93894.0,93893.0,0.45423913]
[1736486598723,0.01988143,93894.0,93893.0,0.64750934]
[1736486598917,0.01988143,93894.0,93893.0,0.55347401]
[1736486599173,0.01988143,93902.0,93894.0,0.426011]
[1736486599371,0.01988143,93902.0,93896.0,0.213001]
[1736486599521,0.01988143,93902.0,93897.0,0.00106485]
[1736486599922,0.02125132,93908.0,93897.0,0.00106485]
[1736486600147,0.212969,93910.0,93897.0,0.00106485]
[1736486600423,0.15,93909.0,93898.0,0.00106484]
[1736486600841,0.03687597,93908.0,93898.0,0.00106484]